[Event "Titled Tuesday Blitz December 20 Late 2022"]
[White "Kravtsiv, Martyn"]
[Black "Mendez Fortes, Eduardo Jesus"]
[WhiteFideId "14113147"]
[BlackFideId "3502376"]
[WhiteElo "2695"]
[BlackElo "2307"]
[Result "1-0"]
[Round "05"]
[TimeControl "180+1"]
[Date "2022.12.20"]
[WhiteClock "0:00:11"]
[BlackClock "0:00:08"]

1. e4 {[%clk 0:02:56]}  e5 {[%clk 0:02:57]} 2. Nf3 {[%clk 0:02:56]}  Nc6 {[%clk 0:02:57]} 3. Nc3 {[%clk 0:02:56]}  Nf6 {[%clk 0:02:54]} 4. a4 {[%clk 0:02:56]}  d5 {[%clk 0:02:52]} 5. exd5 {[%clk 0:02:55]}  Nxd5 {[%clk 0:02:53]} 6. Bb5 {[%clk 0:02:54]}  Nxc3 {[%clk 0:02:53]} 7. bxc3 {[%clk 0:02:55]}  Bd6 {[%clk 0:02:53]} 8. O-O {[%clk 0:02:53]}  O-O {[%clk 0:02:53]} 9. d4 {[%clk 0:02:54]}  exd4 {[%clk 0:02:51]} 10. cxd4 {[%clk 0:02:55]}  Bg4 {[%clk 0:02:44]} 11. c3 {[%clk 0:02:54]}  Qf6 {[%clk 0:02:41]} 12. a5 {[%clk 0:02:53]}  a6 {[%clk 0:02:39]} 13. Bd3 {[%clk 0:02:52]}  h6 {[%clk 0:02:27]} 14. h3 {[%clk 0:02:30]}  Bxf3 {[%clk 0:02:25]} 15. Qxf3 {[%clk 0:02:29]}  Qxf3 {[%clk 0:02:25]} 16. gxf3 {[%clk 0:02:30]}  Ne7 {[%clk 0:02:24]} 17. c4 {[%clk 0:02:23]}  c5 {[%clk 0:02:22]} 18. d5 {[%clk 0:02:23]}  Ng6 {[%clk 0:02:21]} 19. Rb1 {[%clk 0:02:20]}  Rab8 {[%clk 0:02:19]} 20. Rb3 {[%clk 0:02:15]}  Ne5 {[%clk 0:02:14]} 21. Be2 {[%clk 0:02:13]}  Rfe8 {[%clk 0:02:10]} 22. Be3 {[%clk 0:02:12]}  Ng6 {[%clk 0:01:57]} 23. Rfb1 {[%clk 0:02:11]}  Re7 {[%clk 0:01:56]} 24. Rb6 {[%clk 0:01:42]}  Bc7 {[%clk 0:01:55]} 25. d6 {[%clk 0:01:24]}  Bxb6 {[%clk 0:01:54]} 26. dxe7 {[%clk 0:01:24]}  Bxa5 {[%clk 0:01:26]} 27. Rxb7 {[%clk 0:01:22]}  Re8 {[%clk 0:01:25]} 28. Bxc5 {[%clk 0:01:21]}  Bc3 {[%clk 0:01:23]} 29. Bd1 {[%clk 0:01:19]}  Rc8 {[%clk 0:01:00]} 30. Ba4 {[%clk 0:01:09]}  Nxe7 {[%clk 0:00:58]} 31. Bxe7 {[%clk 0:01:09]}  Rxc4 {[%clk 0:00:58]} 32. Bb3 {[%clk 0:01:04]}  Rf4 {[%clk 0:00:53]} 33. Kg2 {[%clk 0:01:01]}  a5 {[%clk 0:00:53]} 34. Bd6 {[%clk 0:00:55]}  Rf6 {[%clk 0:00:50]} 35. Bg3 {[%clk 0:00:50]}  g6 {[%clk 0:00:48]} 36. Bh4 {[%clk 0:00:46]}  Rf4 {[%clk 0:00:38]} 37. Bg3 {[%clk 0:00:45]}  Rf6 {[%clk 0:00:39]} 38. Ra7 {[%clk 0:00:44]}  Kg7 {[%clk 0:00:35]} 39. Bd5 {[%clk 0:00:44]}  h5 {[%clk 0:00:31]} 40. Kf1 {[%clk 0:00:43]}  Rf5 {[%clk 0:00:29]} 41. Be4 {[%clk 0:00:42]}  Rf6 {[%clk 0:00:27]} 42. Ke2 {[%clk 0:00:41]}  Rb6 {[%clk 0:00:17]} 43. Bd5 {[%clk 0:00:39]}  Rf6 {[%clk 0:00:16]} 44. Kd3 {[%clk 0:00:39]}  Bb2 {[%clk 0:00:14]} 45. Rxa5 {[%clk 0:00:38]}  Rf5 {[%clk 0:00:15]} 46. Rb5 {[%clk 0:00:36]}  Bf6 {[%clk 0:00:13]} 47. Bc4 {[%clk 0:00:35]}  Rxf3+ {[%clk 0:00:12]} 48. Ke2 {[%clk 0:00:31]}  Rc3 {[%clk 0:00:12]} 49. Bd3 {[%clk 0:00:31]}  Ra3 {[%clk 0:00:12]} 50. Rb7 {[%clk 0:00:27]}  Ra2+ {[%clk 0:00:12]} 51. Kf1 {[%clk 0:00:26]}  Ra4 {[%clk 0:00:13]} 52. Bc2 {[%clk 0:00:25]}  Ra1+ {[%clk 0:00:12]} 53. Kg2 {[%clk 0:00:25]}  h4 {[%clk 0:00:13]} 54. Bf4 {[%clk 0:00:24]}  g5 {[%clk 0:00:11]} 55. Be3 {[%clk 0:00:23]}  Be5 {[%clk 0:00:07]} 56. Bxg5 {[%clk 0:00:21]}  Ra5 {[%clk 0:00:06]} 57. Bxh4 {[%clk 0:00:21]}  Kh6 {[%clk 0:00:05]} 58. Rxf7 {[%clk 0:00:19]}  Bg7 {[%clk 0:00:06]} 59. Bg3 {[%clk 0:00:19]}  Ra3 {[%clk 0:00:05]} 60. Bf4+ {[%clk 0:00:18]}  Kh5 {[%clk 0:00:05]} 61. Rf5+ {[%clk 0:00:17]}  Kg6 {[%clk 0:00:05]} 62. Ra5+ {[%clk 0:00:17]}  Rd3 {[%clk 0:00:02]} 63. Ra3 {[%clk 0:00:18]}  Kh5 {[%clk 0:00:03]} 64. Rxd3 {[%clk 0:00:16]}  Bc3 {[%clk 0:00:03]} 65. Kf3 {[%clk 0:00:15]}  Kh4 {[%clk 0:00:03]} 66. Ke4 {[%clk 0:00:16]}  Bd2 {[%clk 0:00:03]} 67. Rxd2 {[%clk 0:00:16]}  Kxh3 {[%clk 0:00:03]} 68. Bh6 {[%clk 0:00:14]}  Kg2 {[%clk 0:00:04]} 69. Rd7 {[%clk 0:00:14]}  Kh3 {[%clk 0:00:05]} 70. Bd3 {[%clk 0:00:13]}  Kg2 {[%clk 0:00:06]} 71. Be2 {[%clk 0:00:13]}  Kh2 {[%clk 0:00:07]} 72. Bf3 {[%clk 0:00:12]}  Kg1 {[%clk 0:00:07]} 73. Rd1+ {[%clk 0:00:12]}  Kxf2 {[%clk 0:00:08]} 74. Be3+ {[%clk 0:00:11]}  Kg3 {[%clk 0:00:08]} 75. Rg1+ {[%clk 0:00:10]}  Kh4 {[%clk 0:00:08]} 76. Bf4 {[%clk 0:00:10]}  Kh3 {[%clk 0:00:08]} 77. Rh1# {[%clk 0:00:11]} 1-0


[Site "https://www.chess.com"]

[Event "Titled Tuesday Blitz December 20 Late 2022"]
[White "Leitao, Rafael"]
[Black "Van Foreest, Jorden"]
[WhiteFideId "2101246"]
[BlackFideId "1039784"]
[WhiteElo "2609"]
[BlackElo "2663"]
[Result "0-1"]
[Round "05"]
[TimeControl "180+1"]
[Date "2022.12.20"]
[WhiteClock "0:00:18"]
[BlackClock "0:01:17"]

1. c4 {[%clk 0:02:58]}  Nc6 {[%clk 0:02:57]} 2. Nc3 {[%clk 0:02:55]}  e5 {[%clk 0:02:57]} 3. Nf3 {[%clk 0:02:55]}  f5 {[%clk 0:02:56]} 4. d4 {[%clk 0:02:54]}  e4 {[%clk 0:02:56]} 5. Ng5 {[%clk 0:02:54]}  Bb4 {[%clk 0:02:52]} 6. Nh3 {[%clk 0:02:50]}  Nf6 {[%clk 0:02:49]} 7. Bg5 {[%clk 0:02:43]}  h6 {[%clk 0:02:47]} 8. Bxf6 {[%clk 0:02:35]}  Qxf6 {[%clk 0:02:48]} 9. e3 {[%clk 0:02:34]}  Bxc3+ {[%clk 0:02:42]} 10. bxc3 {[%clk 0:02:34]}  O-O {[%clk 0:02:42]} 11. Nf4 {[%clk 0:02:31]}  d6 {[%clk 0:02:41]} 12. h4 {[%clk 0:02:31]}  Bd7 {[%clk 0:02:32]} 13. h5 {[%clk 0:02:27]}  Be8 {[%clk 0:02:33]} 14. Be2 {[%clk 0:02:25]}  Bf7 {[%clk 0:02:33]} 15. O-O {[%clk 0:01:53]}  b6 {[%clk 0:02:31]} 16. Rb1 {[%clk 0:01:45]}  Na5 {[%clk 0:02:28]} 17. Qa4 {[%clk 0:01:44]}  c5 {[%clk 0:02:23]} 18. Rfd1 {[%clk 0:01:33]}  Rfd8 {[%clk 0:02:21]} 19. Rd2 {[%clk 0:01:17]}  Rac8 {[%clk 0:02:09]} 20. Rbd1 {[%clk 0:01:11]}  Kh7 {[%clk 0:02:10]} 21. g3 {[%clk 0:01:03]}  Rc7 {[%clk 0:02:09]} 22. Nd5 {[%clk 0:00:55]}  Bxd5 {[%clk 0:02:09]} 23. cxd5 {[%clk 0:00:55]}  cxd4 {[%clk 0:02:05]} 24. cxd4 {[%clk 0:00:54]}  Qf7 {[%clk 0:02:00]} 25. Qb5 {[%clk 0:00:46]}  Rdc8 {[%clk 0:02:00]} 26. a4 {[%clk 0:00:43]}  Rc3 {[%clk 0:02:00]} 27. Kg2 {[%clk 0:00:37]}  R8c7 {[%clk 0:01:59]} 28. Qa6 {[%clk 0:00:36]}  Qxd5 {[%clk 0:01:58]} 29. Qb5 {[%clk 0:00:34]}  Qxb5 {[%clk 0:01:54]} 30. axb5 {[%clk 0:00:35]}  d5 {[%clk 0:01:40]} 31. g4 {[%clk 0:00:35]}  Nc4 {[%clk 0:01:38]} 32. Ra2 {[%clk 0:00:34]}  Rf7 {[%clk 0:01:26]} 33. gxf5 {[%clk 0:00:30]}  Rxf5 {[%clk 0:01:27]} 34. Rda1 {[%clk 0:00:20]}  Rg5+ {[%clk 0:01:24]} 35. Kh2 {[%clk 0:00:21]}  Na5 {[%clk 0:01:24]} 36. Ra3 {[%clk 0:00:19]}  Rc2 {[%clk 0:01:24]} 37. R1a2 {[%clk 0:00:20]}  Rc7 {[%clk 0:01:24]} 38. Ra1 {[%clk 0:00:20]}  Rf7 {[%clk 0:01:24]} 39. f3 {[%clk 0:00:18]}  exf3 {[%clk 0:01:24]} 40. Bd3+ {[%clk 0:00:19]}  Kg8 {[%clk 0:01:24]} 41. Bg6 {[%clk 0:00:19]}  Rf8 {[%clk 0:01:19]} 42. Rf1 {[%clk 0:00:18]}  Nc4 {[%clk 0:01:18]} 43. Rxa7 {[%clk 0:00:18]}  Nxe3 {[%clk 0:01:17]} 0-1


[Site "https://www.chess.com"]

[Event "Titled Tuesday Blitz December 20 Late 2022"]
[White "Li, Hui"]
[Black "Izeta Txabarri, Felix"]
[WhiteFideId "15400310"]
[BlackFideId "2200260"]
[WhiteElo "1954"]
[BlackElo "2450"]
[Result "0-1"]
[Round "05"]
[TimeControl "180+1"]
[Date "2022.12.21"]
[WhiteClock "0:00:01"]
[BlackClock "0:00:10"]

1. e4 {[%clk 0:03:00]}  c6 {[%clk 0:02:59]} 2. d4 {[%clk 0:03:00]}  d5 {[%clk 0:02:59]} 3. Nd2 {[%clk 0:03:00]}  dxe4 {[%clk 0:02:58]} 4. Nxe4 {[%clk 0:03:01]}  Bf5 {[%clk 0:02:58]} 5. Ng3 {[%clk 0:03:01]}  Bg6 {[%clk 0:02:59]} 6. h4 {[%clk 0:03:01]}  h6 {[%clk 0:02:59]} 7. Nf3 {[%clk 0:03:02]}  Nd7 {[%clk 0:02:58]} 8. h5 {[%clk 0:03:02]}  Bh7 {[%clk 0:02:59]} 9. Bd3 {[%clk 0:03:02]}  Bxd3 {[%clk 0:03:00]} 10. Qxd3 {[%clk 0:03:03]}  Qc7 {[%clk 0:03:00]} 11. Bd2 {[%clk 0:03:03]}  e6 {[%clk 0:03:01]} 12. O-O-O {[%clk 0:03:01]}  O-O-O {[%clk 0:03:01]} 13. Kb1 {[%clk 0:02:58]}  Ngf6 {[%clk 0:03:00]} 14. Ne4 {[%clk 0:02:57]}  Nxe4 {[%clk 0:02:59]} 15. Qxe4 {[%clk 0:02:58]}  Bd6 {[%clk 0:02:59]} 16. c4 {[%clk 0:02:46]}  Nf6 {[%clk 0:02:58]} 17. Qe2 {[%clk 0:02:41]}  c5 {[%clk 0:02:54]} 18. Bc3 {[%clk 0:02:39]}  cxd4 {[%clk 0:02:50]} 19. Nxd4 {[%clk 0:02:38]}  a6 {[%clk 0:02:50]} 20. Nb3 {[%clk 0:02:23]}  Qc6 {[%clk 0:02:46]} 21. f3 {[%clk 0:02:08]}  Bc7 {[%clk 0:02:42]} 22. Bxf6 {[%clk 0:01:33]}  gxf6 {[%clk 0:02:41]} 23. g4 {[%clk 0:01:28]}  Rxd1+ {[%clk 0:02:23]} 24. Rxd1 {[%clk 0:01:28]}  Rd8 {[%clk 0:02:23]} 25. Rxd8+ {[%clk 0:01:25]}  Kxd8 {[%clk 0:02:23]} 26. Qd2+ {[%clk 0:01:23]}  Ke7 {[%clk 0:02:23]} 27. Qb4+ {[%clk 0:00:56]}  Bd6 {[%clk 0:02:19]} 28. Qc3 {[%clk 0:00:52]}  Be5 {[%clk 0:02:15]} 29. Qd3 {[%clk 0:00:50]}  Qb6 {[%clk 0:02:00]} 30. Kc2 {[%clk 0:00:39]}  Qf2+ {[%clk 0:01:58]} 31. Nd2 {[%clk 0:00:30]}  Bf4 {[%clk 0:01:53]} 32. b4 {[%clk 0:00:16]}  Bxd2 {[%clk 0:01:23]} 33. Qxd2 {[%clk 0:00:16]}  Qxf3 {[%clk 0:01:24]} 34. Qxh6 {[%clk 0:00:16]}  Qxg4 {[%clk 0:01:24]} 35. Kb3 {[%clk 0:00:15]}  Qf3+ {[%clk 0:01:22]} 36. Kb2 {[%clk 0:00:15]}  Qe2+ {[%clk 0:01:21]} 37. Kb3 {[%clk 0:00:15]}  Qd3+ {[%clk 0:01:21]} 38. Kb2 {[%clk 0:00:15]}  Qxc4 {[%clk 0:01:21]} 39. Qd2 {[%clk 0:00:13]}  Kf8 {[%clk 0:01:06]} 40. h6 {[%clk 0:00:10]}  Ke7 {[%clk 0:00:47]} 41. Qc3 {[%clk 0:00:03]}  Qe2+ {[%clk 0:00:45]} 42. Kb3 {[%clk 0:00:03]}  Qd1+ {[%clk 0:00:43]} 43. Kb2 {[%clk 0:00:02]}  Qd6 {[%clk 0:00:26]} 44. a3 {[%clk 0:00:02]}  Qh2+ {[%clk 0:00:24]} 45. Kb3 {[%clk 0:00:01]}  Qxh6 {[%clk 0:00:22]} 46. Qc7+ {[%clk 0:00:01]}  Kf8 {[%clk 0:00:22]} 47. Qxb7 {[%clk 0:00:01]}  Qe3+ {[%clk 0:00:20]} 48. Kb2 {[%clk 0:00:02]}  Qe2+ {[%clk 0:00:17]} 49. Kb3 {[%clk 0:00:02]}  f5 {[%clk 0:00:17]} 50. Qb8+ {[%clk 0:00:02]}  Kg7 {[%clk 0:00:17]} 51. Qg3+ {[%clk 0:00:02]}  Kf6 {[%clk 0:00:16]} 52. Qh4+ {[%clk 0:00:02]}  Ke5 {[%clk 0:00:15]} 53. Qh8+ {[%clk 0:00:03]}  f6 {[%clk 0:00:14]} 54. Qb8+ {[%clk 0:00:02]}  Ke4 {[%clk 0:00:14]} 55. Qb7+ {[%clk 0:00:02]}  Kf4 {[%clk 0:00:14]} 56. Qc7+ {[%clk 0:00:01]}  e5 {[%clk 0:00:13]} 57. Qc1+ {[%clk 0:00:01]}  Kg4 {[%clk 0:00:10]} 0-1


[Site "https://www.chess.com"]

[Event "Titled Tuesday Blitz December 20 Late 2022"]
[White "Martinez Reyes, Pedro Ramon"]
[Black "Pakleza, Zbigniew"]
[WhiteFideId "3901807"]
[BlackFideId "1119290"]
[WhiteElo "2354"]
[BlackElo "2410"]
[Result "1-0"]
[Round "05"]
[TimeControl "180+1"]
[Date "2022.12.21"]
[WhiteClock "0:00:17"]
[BlackClock "0:00:01"]

1. e4 {[%clk 0:03:00]}  d6 {[%clk 0:02:53]} 2. d4 {[%clk 0:02:58]}  Nf6 {[%clk 0:02:53]} 3. Bd3 {[%clk 0:02:57]}  e5 {[%clk 0:02:53]} 4. Nf3 {[%clk 0:02:52]}  exd4 {[%clk 0:02:53]} 5. Nxd4 {[%clk 0:02:52]}  Nbd7 {[%clk 0:02:54]} 6. O-O {[%clk 0:02:51]}  Nc5 {[%clk 0:02:54]} 7. Nc3 {[%clk 0:02:49]}  Be7 {[%clk 0:02:54]} 8. Re1 {[%clk 0:02:47]}  O-O {[%clk 0:02:51]} 9. Bf1 {[%clk 0:02:39]}  Re8 {[%clk 0:02:51]} 10. f3 {[%clk 0:02:38]}  a5 {[%clk 0:02:48]} 11. a4 {[%clk 0:02:36]}  c6 {[%clk 0:02:48]} 12. Be3 {[%clk 0:02:30]}  Bf8 {[%clk 0:02:44]} 13. Bf2 {[%clk 0:02:29]}  Bd7 {[%clk 0:02:37]} 14. Qd2 {[%clk 0:02:24]}  Qc7 {[%clk 0:02:32]} 15. Rad1 {[%clk 0:02:22]}  Rad8 {[%clk 0:02:33]} 16. Qf4 {[%clk 0:02:14]}  Bc8 {[%clk 0:02:26]} 17. Nf5 {[%clk 0:01:51]}  Nh5 {[%clk 0:01:23]} 18. Qg5 {[%clk 0:01:37]}  g6 {[%clk 0:01:20]} 19. Nh6+ {[%clk 0:01:33]}  Kh8 {[%clk 0:01:12]} 20. Bd4+ {[%clk 0:01:15]}  f6 {[%clk 0:01:01]} 21. Ng4 {[%clk 0:00:33]}  Ne6 {[%clk 0:00:31]} 22. Bxf6+ {[%clk 0:00:28]}  Nxf6 {[%clk 0:00:30]} 23. Qxf6+ {[%clk 0:00:29]}  Bg7 {[%clk 0:00:26]} 24. Qh4 {[%clk 0:00:29]}  Qb6+ {[%clk 0:00:22]} 25. Kh1 {[%clk 0:00:26]}  Qxb2 {[%clk 0:00:23]} 26. Ne2 {[%clk 0:00:25]}  g5 {[%clk 0:00:14]} 27. Qh5 {[%clk 0:00:18]}  Qxc2 {[%clk 0:00:11]} 28. Rxd6 {[%clk 0:00:18]}  Qxa4 {[%clk 0:00:03]} 29. Ng3 {[%clk 0:00:17]}  Rf8 {[%clk 0:00:02]} 30. Rxd8 {[%clk 0:00:16]}  Rxd8 {[%clk 0:00:03]} 31. Nf5 {[%clk 0:00:17]}  Nf4 {[%clk 0:00:02]} 32. Qf7 {[%clk 0:00:17]}  Bxf5 {[%clk 0:00:02]} 33. exf5 {[%clk 0:00:17]}  Rf8 {[%clk 0:00:02]} 34. Re8 {[%clk 0:00:17]}  Qb4 {[%clk 0:00:01]} 35. f6 {[%clk 0:00:17]} 1-0


[Site "https://www.chess.com"]

[Event "Titled Tuesday Blitz December 20 Late 2022"]
[White "Matinian, Nikita"]
[Black "Urbina Perez, Juan Antonio"]
[WhiteFideId "24129100"]
[BlackFideId "2217368"]
[WhiteElo "2422"]
[BlackElo "2197"]
[Result "1/2-1/2"]
[Round "05"]
[TimeControl "180+1"]
[Date "2022.12.21"]
[WhiteClock "0:00:06"]
[BlackClock "0:00:11"]

1. e4 {[%clk 0:02:52]}  c5 {[%clk 0:02:59]} 2. Nf3 {[%clk 0:02:51]}  d6 {[%clk 0:03:00]} 3. d4 {[%clk 0:02:52]}  cxd4 {[%clk 0:03:01]} 4. Nxd4 {[%clk 0:02:53]}  Nf6 {[%clk 0:03:01]} 5. Nc3 {[%clk 0:02:54]}  Nc6 {[%clk 0:03:01]} 6. Bc4 {[%clk 0:02:52]}  Qb6 {[%clk 0:03:00]} 7. Nxc6 {[%clk 0:02:52]}  bxc6 {[%clk 0:02:57]} 8. O-O {[%clk 0:02:52]}  g6 {[%clk 0:02:56]} 9. Qe1 {[%clk 0:02:52]}  Qc7 {[%clk 0:02:56]} 10. Bf4 {[%clk 0:02:50]}  Nd7 {[%clk 0:02:56]} 11. Qe3 {[%clk 0:02:46]}  Bg7 {[%clk 0:02:55]} 12. Bh6 {[%clk 0:02:45]}  O-O {[%clk 0:02:55]} 13. Bxg7 {[%clk 0:02:45]}  Kxg7 {[%clk 0:02:56]} 14. Kh1 {[%clk 0:02:40]}  a5 {[%clk 0:02:55]} 15. f4 {[%clk 0:02:37]}  Ba6 {[%clk 0:02:55]} 16. Bxa6 {[%clk 0:02:34]}  Rxa6 {[%clk 0:02:56]} 17. Nd1 {[%clk 0:02:20]}  Qb6 {[%clk 0:02:54]} 18. Qh3 {[%clk 0:02:18]}  Ra7 {[%clk 0:02:39]} 19. b3 {[%clk 0:02:16]}  Qd4 {[%clk 0:02:37]} 20. Nf2 {[%clk 0:02:16]}  a4 {[%clk 0:02:27]} 21. Rad1 {[%clk 0:02:09]}  Qc5 {[%clk 0:02:21]} 22. c4 {[%clk 0:02:07]}  axb3 {[%clk 0:02:20]} 23. axb3 {[%clk 0:02:08]}  Nf6 {[%clk 0:02:18]} 24. e5 {[%clk 0:02:03]}  dxe5 {[%clk 0:02:15]} 25. Nd3 {[%clk 0:02:03]}  Qb6 {[%clk 0:01:44]} 26. fxe5 {[%clk 0:02:03]}  Ne4 {[%clk 0:01:36]} 27. Qf3 {[%clk 0:01:35]}  Ng5 {[%clk 0:01:31]} 28. c5 {[%clk 0:01:19]}  Qb5 {[%clk 0:01:19]} 29. Qg3 {[%clk 0:01:02]}  Ne6 {[%clk 0:01:17]} 30. b4 {[%clk 0:01:02]}  Ra3 {[%clk 0:01:10]} 31. Rf3 {[%clk 0:01:02]}  Qa4 {[%clk 0:00:58]} 32. Rdf1 {[%clk 0:00:57]}  Ra1 {[%clk 0:00:57]} 33. h3 {[%clk 0:00:51]}  Rxf1+ {[%clk 0:00:52]} 34. Rxf1 {[%clk 0:00:52]}  Qb3 {[%clk 0:00:48]} 35. Kh2 {[%clk 0:00:48]}  Qd5 {[%clk 0:00:43]} 36. Nf4 {[%clk 0:00:44]}  Qxe5 {[%clk 0:00:38]} 37. Nxe6+ {[%clk 0:00:40]}  Qxe6 {[%clk 0:00:39]} 38. Qc3+ {[%clk 0:00:37]}  Kg8 {[%clk 0:00:38]} 39. Re1 {[%clk 0:00:37]}  Qd7 {[%clk 0:00:36]} 40. Qe5 {[%clk 0:00:37]}  e6 {[%clk 0:00:32]} 41. Re4 {[%clk 0:00:37]}  Rd8 {[%clk 0:00:28]} 42. Rf4 {[%clk 0:00:27]}  Qd5 {[%clk 0:00:22]} 43. Qc7 {[%clk 0:00:26]}  Rd7 {[%clk 0:00:20]} 44. Qb8+ {[%clk 0:00:25]}  Kg7 {[%clk 0:00:20]} 45. Rf3 {[%clk 0:00:20]}  h5 {[%clk 0:00:19]} 46. Qf4 {[%clk 0:00:18]}  Qd4 {[%clk 0:00:17]} 47. Qxd4+ {[%clk 0:00:04]}  Rxd4 {[%clk 0:00:18]} 48. Rb3 {[%clk 0:00:05]}  Rc4 {[%clk 0:00:17]} 49. Kg3 {[%clk 0:00:04]}  f5 {[%clk 0:00:17]} 50. Kf3 {[%clk 0:00:05]}  Kf6 {[%clk 0:00:18]} 51. Ke3 {[%clk 0:00:05]}  e5 {[%clk 0:00:18]} 52. Kd3 {[%clk 0:00:05]}  Rd4+ {[%clk 0:00:18]} 53. Kc3 {[%clk 0:00:06]}  Rd5 {[%clk 0:00:18]} 54. Kc4 {[%clk 0:00:06]}  Rd4+ {[%clk 0:00:19]} 55. Kc3 {[%clk 0:00:06]}  Ke6 {[%clk 0:00:18]} 56. b5 {[%clk 0:00:06]}  cxb5 {[%clk 0:00:19]} 57. Rxb5 {[%clk 0:00:07]}  Kd5 {[%clk 0:00:19]} 58. Rb6 {[%clk 0:00:07]}  Rc4+ {[%clk 0:00:15]} 59. Kd3 {[%clk 0:00:07]}  Rxc5 {[%clk 0:00:14]} 60. Rxg6 {[%clk 0:00:07]}  Ra5 {[%clk 0:00:14]} 61. Rg5 {[%clk 0:00:06]}  Ra3+ {[%clk 0:00:13]} 62. Ke2 {[%clk 0:00:07]}  Ke4 {[%clk 0:00:13]} 63. Rxh5 {[%clk 0:00:06]}  Ra2+ {[%clk 0:00:14]} 64. Kf1 {[%clk 0:00:06]}  f4 {[%clk 0:00:15]} 65. Kg1 {[%clk 0:00:06]}  Kd4 {[%clk 0:00:15]} 66. Rf5 {[%clk 0:00:05]}  Ke4 {[%clk 0:00:15]} 67. Rf6 {[%clk 0:00:05]}  Ke3 {[%clk 0:00:14]} 68. h4 {[%clk 0:00:04]}  e4 {[%clk 0:00:14]} 69. h5 {[%clk 0:00:05]}  Ra5 {[%clk 0:00:14]} 70. h6 {[%clk 0:00:05]}  Rh5 {[%clk 0:00:14]} 71. Ra6 {[%clk 0:00:05]}  f3 {[%clk 0:00:13]} 72. gxf3 {[%clk 0:00:03]}  exf3 {[%clk 0:00:14]} 73. Ra3+ {[%clk 0:00:03]}  Kf4 {[%clk 0:00:14]} 74. Ra4+ {[%clk 0:00:03]}  Kg3 {[%clk 0:00:13]} 75. Ra3 {[%clk 0:00:03]}  Rxh6 {[%clk 0:00:13]} 76. Ra2 {[%clk 0:00:03]}  Rb6 {[%clk 0:00:12]} 77. Rg2+ {[%clk 0:00:03]}  Kf4 {[%clk 0:00:10]} 78. Rg8 {[%clk 0:00:03]}  Rb1+ {[%clk 0:00:09]} 79. Kf2 {[%clk 0:00:04]}  Rb2+ {[%clk 0:00:10]} 80. Kf1 {[%clk 0:00:04]}  Ke3 {[%clk 0:00:10]} 81. Re8+ {[%clk 0:00:04]}  Kf4 {[%clk 0:00:10]} 82. Rf8+ {[%clk 0:00:05]}  Ke3 {[%clk 0:00:10]} 83. Re8+ {[%clk 0:00:05]}  Kf4 {[%clk 0:00:10]} 84. Rf8+ {[%clk 0:00:05]}  Ke3 {[%clk 0:00:11]} 85. Re8+ {[%clk 0:00:06]} 1/2-1/2


[Site "https://www.chess.com"]

[Event "Titled Tuesday Blitz December 20 Late 2022"]
[White "Mekhitarian, Krikor Sevag"]
[Black "Renjith, Sravan"]
[WhiteFideId "2107660"]
[BlackFideId "4306783"]
[WhiteElo "2604"]
[BlackElo "2072"]
[Result "1/2-1/2"]
[Round "05"]
[TimeControl "180+1"]
[Date "2022.12.20"]
[WhiteClock "0:00:15"]
[BlackClock "0:00:08"]

1. e4 {[%clk 0:02:55]}  e5 {[%clk 0:02:59]} 2. Nf3 {[%clk 0:02:54]}  Nf6 {[%clk 0:03:00]} 3. d3 {[%clk 0:02:49]}  Nc6 {[%clk 0:02:56]} 4. c3 {[%clk 0:02:49]}  Bc5 {[%clk 0:02:54]} 5. Be2 {[%clk 0:02:43]}  O-O {[%clk 0:02:54]} 6. b4 {[%clk 0:02:43]}  Bb6 {[%clk 0:02:45]} 7. Nbd2 {[%clk 0:02:43]}  d6 {[%clk 0:02:38]} 8. a4 {[%clk 0:02:43]}  a5 {[%clk 0:02:37]} 9. b5 {[%clk 0:02:42]}  Ne7 {[%clk 0:02:38]} 10. Nc4 {[%clk 0:02:43]}  Bc5 {[%clk 0:02:38]} 11. O-O {[%clk 0:02:39]}  c6 {[%clk 0:02:38]} 12. d4 {[%clk 0:02:39]}  exd4 {[%clk 0:02:31]} 13. cxd4 {[%clk 0:02:39]}  Ba7 {[%clk 0:02:31]} 14. Qc2 {[%clk 0:02:27]}  Nxe4 {[%clk 0:02:00]} 15. b6 {[%clk 0:02:26]}  Bb8 {[%clk 0:01:54]} 16. Qxe4 {[%clk 0:02:17]}  d5 {[%clk 0:01:53]} 17. Qb1 {[%clk 0:02:17]}  dxc4 {[%clk 0:01:53]} 18. Bxc4 {[%clk 0:02:16]}  Bf5 {[%clk 0:01:47]} 19. Qb3 {[%clk 0:02:14]}  Nd5 {[%clk 0:01:37]} 20. Ba3 {[%clk 0:02:14]}  Re8 {[%clk 0:00:49]} 21. Rfe1 {[%clk 0:02:10]}  Be6 {[%clk 0:00:49]} 22. Bc5 {[%clk 0:02:07]}  Qf6 {[%clk 0:00:42]} 23. Ne5 {[%clk 0:02:01]}  Nf4 {[%clk 0:00:30]} 24. Bxe6 {[%clk 0:01:44]}  Qxe6 {[%clk 0:00:29]} 25. Qxe6 {[%clk 0:01:06]}  Nxe6 {[%clk 0:00:24]} 26. Nc4 {[%clk 0:01:06]}  Bf4 {[%clk 0:00:22]} 27. g3 {[%clk 0:01:05]}  Bg5 {[%clk 0:00:20]} 28. Nd6 {[%clk 0:01:04]}  Reb8 {[%clk 0:00:19]} 29. f4 {[%clk 0:00:59]}  Be7 {[%clk 0:00:14]} 30. Ne4 {[%clk 0:00:59]}  Bxc5 {[%clk 0:00:13]} 31. Nxc5 {[%clk 0:00:56]}  Nxc5 {[%clk 0:00:13]} 32. dxc5 {[%clk 0:00:56]}  Kf8 {[%clk 0:00:12]} 33. Re5 {[%clk 0:00:48]}  Rd8 {[%clk 0:00:12]} 34. Rae1 {[%clk 0:00:48]}  Rd7 {[%clk 0:00:12]} 35. Kg2 {[%clk 0:00:47]}  Rad8 {[%clk 0:00:12]} 36. Kh3 {[%clk 0:00:47]}  Rd5 {[%clk 0:00:09]} 37. Re7 {[%clk 0:00:47]}  R5d7 {[%clk 0:00:10]} 38. Rxd7 {[%clk 0:00:44]}  Rxd7 {[%clk 0:00:10]} 39. Re4 {[%clk 0:00:39]}  Rd5 {[%clk 0:00:09]} 40. Rc4 {[%clk 0:00:40]}  Ke7 {[%clk 0:00:09]} 41. Kg4 {[%clk 0:00:41]}  f5+ {[%clk 0:00:09]} 42. Kg5 {[%clk 0:00:40]}  Kf7 {[%clk 0:00:09]} 43. h3 {[%clk 0:00:40]}  Ke6 {[%clk 0:00:08]} 44. Rc1 {[%clk 0:00:36]}  Rd4 {[%clk 0:00:08]} 45. Re1+ {[%clk 0:00:37]}  Re4 {[%clk 0:00:08]} 46. Ra1 {[%clk 0:00:35]}  Re3 {[%clk 0:00:08]} 47. g4 {[%clk 0:00:35]}  fxg4 {[%clk 0:00:07]} 48. hxg4 {[%clk 0:00:35]}  Rc3 {[%clk 0:00:08]} 49. Re1+ {[%clk 0:00:35]}  Kf7 {[%clk 0:00:08]} 50. Re5 {[%clk 0:00:33]}  Rc4 {[%clk 0:00:09]} 51. f5 {[%clk 0:00:28]}  h6+ {[%clk 0:00:09]} 52. Kh5 {[%clk 0:00:27]}  Rxa4 {[%clk 0:00:09]} 53. Re6 {[%clk 0:00:28]}  Ra1 {[%clk 0:00:08]} 54. Kh4 {[%clk 0:00:26]}  Rd1 {[%clk 0:00:09]} 55. Re4 {[%clk 0:00:25]}  Rd5 {[%clk 0:00:09]} 56. Rc4 {[%clk 0:00:25]}  Kf6 {[%clk 0:00:09]} 57. Rc1 {[%clk 0:00:22]}  a4 {[%clk 0:00:08]} 58. Rc4 {[%clk 0:00:20]}  a3 {[%clk 0:00:08]} 59. Ra4 {[%clk 0:00:21]}  Rxc5 {[%clk 0:00:08]} 60. Rxa3 {[%clk 0:00:22]}  Rb5 {[%clk 0:00:09]} 61. Ra8 {[%clk 0:00:22]}  Rxb6 {[%clk 0:00:09]} 62. Rf8+ {[%clk 0:00:23]}  Ke7 {[%clk 0:00:09]} 63. Rc8 {[%clk 0:00:24]}  Rb5 {[%clk 0:00:09]} 64. Kh5 {[%clk 0:00:24]}  Kf7 {[%clk 0:00:09]} 65. Rc7+ {[%clk 0:00:24]}  Kf6 {[%clk 0:00:09]} 66. Rc8 {[%clk 0:00:24]}  Rb1 {[%clk 0:00:09]} 67. Rf8+ {[%clk 0:00:22]}  Ke7 {[%clk 0:00:10]} 68. Rc8 {[%clk 0:00:21]}  Kf7 {[%clk 0:00:10]} 69. Kh4 {[%clk 0:00:20]}  Rc1 {[%clk 0:00:10]} 70. Rc7+ {[%clk 0:00:19]}  Kf6 {[%clk 0:00:10]} 71. Rxb7 {[%clk 0:00:20]}  c5 {[%clk 0:00:11]} 72. Rb6+ {[%clk 0:00:20]}  Ke5 {[%clk 0:00:11]} 73. Rg6 {[%clk 0:00:19]}  Kf4 {[%clk 0:00:10]} 74. Kh3 {[%clk 0:00:18]}  Rc3+ {[%clk 0:00:10]} 75. Kh2 {[%clk 0:00:15]}  Rc2+ {[%clk 0:00:10]} 76. Kh3 {[%clk 0:00:14]}  Rc3+ {[%clk 0:00:10]} 77. Kh4 {[%clk 0:00:14]}  Rc1 {[%clk 0:00:10]} 78. Kh3 {[%clk 0:00:15]}  Rc3+ {[%clk 0:00:08]} 1/2-1/2


[Site "https://www.chess.com"]